Cogmind - Beta 14 @@@ ROGUE MODE // 2025.03.02 @ 19:59:51 Player: k1ll3rb0t Result: Destroyed by Enhanced Grunt with Neutron Cannon Performance ------------- Evolutions (3) 1500 Regions Visited (9) 1800 Robots Destroyed (125) 625 Value Destroyed (3929) 3929 Prototype IDs (5) 100 Alien Tech Used (0) 0 Bonus (207) 207 TOTAL SCORE: 8161 Bonus ------- High Alert Combat Kills 87 Follower Combat Kills 162 Met Data Miner 300 Friendly Fire -342 Cogmind --------- Core Integrity 0/700 Matter 300/300 Energy 67/100 System Corruption 12% Temperature Cool (0) Movement Core (50) Location -7/Data Miner Parts ------- > --- POWER (1) -------- (None) > --- PROPULSION (4) --- (None) > --- UTILITY (6) ------ (None) > --- WEAPON (2) ------- (None) > --- INVENTORY (5) ---- Improved Deuterium Engine Aluminum Leg High-powered Shotgun High-powered Shotgun Mini Assault Cannon Peak State ------------ > --- POWER ------------ Reinforced Deuterium Engine > --- PROPULSION ------- Light Treads Armored Treads Armored Treads Armored Treads > --- UTILITY ---------- Improved Heat Sink Coolant Injector Large Storage Unit Advanced Terrain Scan Processor Kinecellerator Improved Light Armor Plating > --- WEAPON ----------- High-powered Shotgun Mini Assault Cannon > --- INVENTORY -------- Improved Deuterium Engine Improved Deuterium Engine Light Treads Light Treads Light Treads Advanced Treads Improved Heat Sink Large Matter Pod Advanced Terrain Scan Processor Hardened Medium Armor Plating High-powered Shotgun Mini Assault Cannon Mini Assault Cannon Rocket Launcher Katana [Rating: 45] Favorites ----------- Power Ion Engine Engine Ion Engine Power Core Light Nuclear Core Propulsion Light Treads Treads Light Treads Leg Aluminum Leg Utility Large Storage Unit Device Sensor Array Storage Large Storage Unit Processor Signal Interpreter Protection Hardened Medium Armor Plating Weapon Mini Assault Cannon Energy Gun Beamcaster Energy Cannon Beam Cannon Ballistic Gun High-powered Shotgun Ballistic Cannon Mini Assault Cannon Launcher Grenade Launcher Slashing Weapon Katana Build | -11 -10 -10 -9 -9 -8 -7 -7 -7 -7 ------- Run | Yrd Mat Min Mat Min Mat Fac Low Low Dat Slots Evolved 6 | . . . 2 . 2 2 . . . Power . | . . . . . . . . . . Propulsion 2 | . . . . . 1 1 . . . Utility 4 | . . . 2 . 1 1 . . . Weapon . | . . . . . . . . . . Parts Attached 120 | 7 6 8 9 9 18 34 12 16 1 Power 11 | 1 1 . . 1 3 4 1 . . Engine 10 | 1 1 . . 1 3 3 1 . . Core 1 | . . . . . . 1 . . . Reactor . | . . . . . . . . . . Propulsion 21 | 2 1 3 . . 4 5 3 3 . Treads 17 | . . 3 . . 4 5 3 2 . Leg 4 | 2 1 . . . . . . 1 . Wheel . | . . . . . . . . . . Hover . | . . . . . . . . . . Flight . | . . . . . . . . . . Utility 27 | 2 3 1 3 . 4 9 1 4 . Device 11 | 1 2 1 . . 1 3 . 3 . Storage 3 | 1 1 . 1 . . . . . . Processor 3 | . . . 1 . . 2 . . . Hackware . | . . . . . . . . . . Protection 10 | . . . 1 . 3 4 1 1 . Artifact . | . . . . . . . . . . Weapon 61 | 2 1 4 6 8 7 16 7 9 1 Energy Gun 10 | 1 . 1 3 1 3 1 . . . Energy Cannon 2 | . 1 1 . . . . . . . Ballistic Gun 13 | 1 . 1 . 2 2 2 2 3 . Ballistic Cannon 10 | . . . . 1 . 6 2 1 . Launcher 20 | . . . 3 4 2 4 2 4 1 Special Weapon . | . . . . . . . . . . Impact Weapon . | . . . . . . . . . . Slashing Weapon 6 | . . 1 . . . 3 1 1 . Piercing Weapon . | . . . . . . . . . . Special Melee Weapon . | . . . . . . . . . . Unidentified Prototypes 2 | . . . . . 1 1 . . . Parts Lost 31 | . 1 . . . 3 11 5 7 4 Power 2 | . . . . . . 1 1 . . Propulsion 14 | . . . . . 2 3 3 3 3 Utility 12 | . 1 . . . . 6 1 4 . Weapon 3 | . . . . . 1 1 . . 1 Highest Loss Streak 4 | . 1 . . . 2 2 3 3 4 To Critical Strikes 2 | . . . . . . 1 1 . . Average Slot Usage (%) 97 | . 95 100 100 100 98 99 99 84 67 Engine 9 | . 14 14 11 11 9 5 7 7 6 Treads 24 | . . 23 22 22 26 30 29 25 20 Leg 2 | . 28 4 . . . . . 1 6 Device 14 | . 9 14 11 11 16 16 18 13 6 Storage 9 | . 14 14 11 11 9 7 7 7 6 Processor 7 | . . . 11 11 9 11 7 7 6 Protection 6 | . . . 11 11 9 8 11 4 . Energy Gun 4 | . 7 8 10 7 5 1 . . . Ballistic Gun 8 | . 14 14 11 5 4 7 6 4 5 Ballistic Cannon 4 | . . . . 4 8 4 6 6 6 Peak Build Rating 45 | 9 10 13 15 16 25 44 45 42 37 Average Rating 25 | 5 7 11 14 14 21 36 41 36 35 On Entrance 20 | . 9 10 13 15 12 25 43 41 37 Naked Turns 3 | . . . . . . . . . 3 Heaviest Build 54 | 14 20 24 37 37 45 54 54 53 40 Greatest Support 86 | 20 20 40 40 40 63 86 80 83 15 Greatest Overweight (x) 2 | . . . . . . . . 2 2 Average Overweight (x) . | . . . . . . . . . 1 Largest Inventory Capacity 15 | 8 10 10 15 15 15 15 15 15 15 Average Capacity 13 | 7 8 10 14 15 15 15 15 15 14 Most Carried 15 | 5 10 10 14 15 15 15 15 15 15 Average Carried 12 | 3 7 9 10 14 14 14 13 13 14 Final Capacity 15 | 8 10 10 15 15 15 15 15 15 5 Final Carried 15 | 3 10 10 14 15 15 15 14 15 5 Class Distribution -------------------- 50% | Scavenger-Mutant 37% | Mutant 11% | Scavenger-Skirmisher Dominant Class ---------------- Mutant | -10/Materials Scavenger-Mutant | -10/Mines Scavenger-Mutant | -9/Materials Scavenger-Mutant | -9/Mines Scavenger-Skirmisher | -8/Materials Mutant | -7/Factory Mutant | -7/Lower Caves Mutant | -7/Lower Caves Mutant | -7/Data Miner Resources | -11 -10 -10 -9 -9 -8 -7 -7 -7 -7 ----------- Run | Yrd Mat Min Mat Min Mat Fac Low Low Dat Matter Collected 3625 | 238 145 123 336 222 240 1207 677 407 30 Remotely . | . . . . . . . . . . Salvage Created 3365 | 51 313 149 245 283 353 1210 426 335 . Parts 187 | 4 18 11 18 29 16 63 12 16 . Haulers Intercepted 3 | . 1 . 1 . . 1 . . . Recyclers Shooed 9 | . 1 1 . 1 . 6 . . . Parts Field Recycled . | . . . . . . . . . . Retrieved Matter . | . . . . . . . . . . Parts Self-Destructed 23 | . . . . . . . 9 14 . Prevented . | . . . . . . . . . . Kills | -11 -10 -10 -9 -9 -8 -7 -7 -7 -7 ------- Run | Yrd Mat Min Mat Min Mat Fac Low Low Dat Combat Hostiles Destroyed 102 | . 5 4 9 16 9 30 14 15 . Melee 2 | . . . . . . 1 1 . . Guns 32 | . 4 3 3 3 5 10 3 1 . Cannons 22 | . . 1 . 2 2 11 2 4 . AOE 44 | . . . 6 11 2 8 7 10 . Classes Destroyed 14 | 1 5 1 . . 3 3 . 1 . Builder 4 | . . 1 . . . 3 . . . Tunneler 7 | 3 1 . . 1 1 1 . . . Hauler 3 | . 1 . 1 . . 1 . . . Recycler 3 | . 1 . . . . 2 . . . Mechanic 1 | . . . . . . 1 . . . Watcher 3 | . 1 . . . . 2 . . . Swarmer 42 | . 3 1 4 12 . 6 6 10 . Grunt 38 | . 2 3 5 5 3 15 3 2 . Brawler 4 | . . . . . . 2 1 1 . Duelist 2 | . . . . . 1 . . 1 . Sentry 8 | . . . . . 3 3 1 1 . Hunter 2 | . . . . . 2 . . . . Programmer 4 | . . . . . . 4 . . . Decomposer 1 | . . . . . . . . 1 . Thug 4 | . . . . . . . 4 . . Best Kill Streak 7 | 1 5 2 7 3 5 6 5 5 . Combat Bots Only 7 | . 5 2 7 3 5 5 5 5 . Max Kills in Single Turn 3 | 1 1 1 3 3 1 3 3 2 . Gunslinging . | . . . . . . . . . . Exploded 3 | . . . 3 3 1 2 3 2 . Melee 1 | . . . . . . 1 1 . . Uniques/NPCs Destroyed . | . . . . . . . . . . Combat | -11 -10 -10 -9 -9 -8 -7 -7 -7 -7 -------- Run | Yrd Mat Min Mat Min Mat Fac Low Low Dat Hostile Shots Fired 602 | . 35 15 29 32 50 308 67 55 11 Missed 184 | . 5 5 13 9 10 104 16 20 2 Damage Taken 6251 | . 260 118 153 203 612 2684 1124 645 452 Core 886 | . 52 . 9 26 95 225 140 25 314 Absorbed by Shields . | . . . . . . . . . . Core Remaining (%) 88 | 100 . 79 . 91 82 . . . . Volleys Fired 282 | 12 46 16 20 19 27 91 25 25 1 Largest 2 | 2 2 2 2 2 2 2 2 2 2 Hottest 128 | 70 80 98 98 105 114 128 81 81 81 Shots Fired 499 | 24 85 28 40 30 47 159 45 39 2 Gun 312 | 24 77 23 36 16 18 89 16 12 1 Cannon 140 | . 8 5 . 3 27 59 21 17 . Launcher 47 | . . . 4 11 2 11 8 10 1 Special . | . . . . . . . . . . Kinetic 325 | 12 46 16 20 9 32 123 37 29 1 Thermal 127 | 12 39 12 16 10 13 25 . . . Explosive 47 | . . . 4 11 2 11 8 10 1 Electromagnetic . | . . . . . . . . . . Robot Hit Streak 11 | 7 11 6 6 7 5 9 4 6 1 Robot Miss Streak 12 | 3 6 3 4 2 2 12 8 3 1 Penetration Max . | . . . . . . . . . . Secondary Targets 3 | . . . 1 1 . 1 . . . Max Gunslinging Chain 1 | . . . 1 1 . 1 . . . Shots Hit Robots 299 | 14 44 14 21 8 25 124 27 21 1 Core Hits 218 | 6 14 6 17 22 16 85 27 25 . Critical Kills . | . . . . . . . . . . Critical Parts Destroyed . | . . . . . . . . . . Critical Strikes 13 | 1 1 . 1 . 2 4 . 4 . Burn 3 | 1 1 . 1 . . . . . . Blast 7 | . . . . . 2 3 . 2 . Sever 3 | . . . . . . 1 . 2 . Melee Attacks 36 | . . 11 . . . 13 6 6 . Impact . | . . . . . . . . . . Slashing 36 | . . 11 . . . 13 6 6 . Piercing . | . . . . . . . . . . Sneak Attacks 4 | . . . . . . 4 . . . Combat Hostiles . | . . . . . . . . . . Follow-up Attacks . | . . . . . . . . . . Damage Inflicted 10070 | 149 498 261 640 937 641 4123 1421 1348 52 Guns 3311 | 149 428 187 393 131 265 1455 185 118 . Cannons 2112 | . 70 71 . 42 232 1042 329 326 . Explosions 3954 | . . . 240 713 138 1119 842 850 52 Melee 624 | . . . . . . 507 65 52 . Ramming 69 | . . 3 7 51 6 . . 2 . Kinetic 3893 | 74 178 102 178 68 329 2006 514 444 . Thermal 1587 | 75 320 156 215 162 168 491 . . . Explosive 3897 | . . . 240 656 138 1119 842 850 52 Electromagnetic . | . . . . . . . . . . Impact . | . . . . . . . . . . Slashing 624 | . . . . . . 507 65 52 . Piercing . | . . . . . . . . . . Highest Corruption 12 | . . . . . . 12 12 12 12 Average Corruption 9 | . . . . . . 7 12 12 12 Corruption Purged . | . . . . . . . . . . Corruption Blocked . | . . . . . . . . . . Effects 124 | . . . . . . 44 44 31 5 Message Errors 31 | . . . . . . 9 11 9 2 Matter Fused 25 | . . . . . . 10 9 6 . Heat Flow Errors 21 | . . . . . . 10 7 4 . Energy Discharges 6 | . . . . . . 4 1 . 1 Parts Rejected 3 | . . . . . . 1 . 2 . Parts Fused 1 | . . . . . . 1 . . . Data Loss (minor) 15 | . . . . . . 6 4 5 . Data Loss (major) 7 | . . . . . . 1 6 . . Misfires 6 | . . . . . . 1 1 3 1 Alerts 5 | . . . . . . . 4 1 . Weapon Failures 4 | . . . . . . 1 1 1 1 Overload Shots . | . . . . . . . . . . Overflow Damage 224 | . . . . . 1 162 24 37 . Projectiles 61 | . . . . . . 21 24 16 . Explosions 107 | . . . . . 1 85 . 21 . Melee 56 | . . . . . . 56 . . . Knockbacks 30 | . . . . 1 5 19 3 2 . Impact 1 | . . . . 1 . . . . . Kinetic 23 | . . . . . 3 15 3 2 . Secondary 6 | . . . . . 2 4 . . . Self-Inflicted Damage 340 | . . . . . . 169 87 55 29 Shots 10 | . . . . . . 5 2 2 1 Rammed 12 | . . . 2 8 1 . . 1 . Targets Rammed 13 | . . 1 2 8 1 . . 1 . Kicked 1 | . . 1 . . . . . . . Crushed . | . . . . . . . . . . Highest Temperature 294 | 50 224 156 180 97 294 282 186 171 . Average Temperature 74 | 23 72 56 72 32 108 77 91 52 . Received Heat Transfer 1572 | . 48 39 33 30 207 756 315 144 . Siege Activations . | . . . . . . . . . . Robots Corrupted . | . . . . . . . . . . Combat Hostiles . | . . . . . . . . . . Parts Fried . | . . . . . . . . . . Impact Corruptions . | . . . . . . . . . . Robots Melted 1 | . 1 . . . . . . . . Combat Hostiles 1 | . 1 . . . . . . . . Parts Melted 10 | . 3 . 1 2 2 2 . . . Heat Transferred 3629 | 296 962 296 444 235 296 1100 . . . Parts Sabotaged . | . . . . . . . . . . Parts Stolen . | . . . . . . . . . . Parts Stripped . | . . . . . . . . . . Power Chain Reactions . | . . . . . . . . . . Alert | -11 -10 -10 -9 -9 -8 -7 -7 -7 -7 ------- Run | Yrd Mat Min Mat Min Mat Fac Low Low Dat Peak Influence 519 | 15 168 152 344 403 292 519 . . . Initial 131 | . 9 . . 68 131 76 . . . Average 164 | 5 96 22 93 302 159 237 . . . Maximum Alert Level 2 | . . . 1 2 1 2 . . . Low Security (%) 64 | 100 100 100 85 10 76 49 . . . Level 1 25 | . . . 14 81 23 25 . . . Level 2 9 | . . . . 8 . 25 . . . Level 3 . | . . . . . . . . . . Level 4 . | . . . . . . . . . . Level 5 . | . . . . . . . . . . High Security . | . . . . . . . . . . Max Security . | . . . . . . . . . . Squads Dispatched 12 | . . . 2 . 3 7 . . . Investigation 3 | . . . . . 1 2 . . . Extermination 4 | . . . . . . 4 . . . Reinforcement 5 | . . . 2 . 2 1 . . . Assault . | . . . . . . . . . . Garrison . | . . . . . . . . . . Intercept . | . . . . . . . . . . Searches Triggered . | . . . . . . . . . . Construction Impeded 2 | . . . . . 1 1 . . . Haulers Reinforced . | . . . . . . . . . . Active Scanning Responses . | . . . . . . . . . . Cargo Convoy Interrupts . | . . . . . . . . . . Stealth | -11 -10 -10 -9 -9 -8 -7 -7 -7 -7 --------- Run | Yrd Mat Min Mat Min Mat Fac Low Low Dat Distress Signals 5 | . 2 1 1 . 1 . . . . Communications Jammed . | . . . . . . . . . . Distress Signals . | . . . . . . . . . . Times Spotted 137 | . 12 8 19 12 11 36 15 16 8 Peak Tracking Total 7 | . 7 3 7 4 5 6 7 6 4 Tactical Retreats 10 | . . 1 . 1 3 1 2 2 . Traps | -11 -10 -10 -9 -9 -8 -7 -7 -7 -7 ------- Run | Yrd Mat Min Mat Min Mat Fac Low Low Dat Traps Triggered 2 | . . . . . 1 1 . . . Indirectly . | . . . . . . . . . . Trap Hack Attempts . | . . . . . . . . . . Triggered . | . . . . . . . . . . Disarmed . | . . . . . . . . . . Reprogrammed . | . . . . . . . . . . Reused . | . . . . . . . . . . Traps Extracted . | . . . . . . . . . . Installed . | . . . . . . . . . . Triggered . | . . . . . . . . . . Most Traps Carried 2 | . . 2 . . . . . . . Machines | -11 -10 -10 -9 -9 -8 -7 -7 -7 -7 ---------- Run | Yrd Mat Min Mat Min Mat Fac Low Low Dat Machines Disabled 13 | . 1 . 2 4 1 4 . . 1 Max in Single Turn 2 | . 1 . 1 2 1 2 . . 1 Machines Repaired . | . . . . . . . . . . Machines Dismantled . | . . . . . . . . . . Machines Sabotaged . | . . . . . . . . . . Overloaded Fab Kills . | . . . . . . . . . . Hacking | -11 -10 -10 -9 -9 -8 -7 -7 -7 -7 --------- Run | Yrd Mat Min Mat Min Mat Fac Low Low Dat Machines Accessed 8 | . 1 . . . 2 5 . . . Terminals 6 | . 1 . . . 1 4 . . . Fabricators 1 | . . . . . . 1 . . . Repair Stations . | . . . . . . . . . . Recycling Units . | . . . . . . . . . . Scanalyzers 1 | . . . . . 1 . . . . Garrison Access . | . . . . . . . . . . Total Hacks 21 | . 2 . . . 8 11 . . . Successful 12 | . 1 . . . 6 5 . . . Failed 9 | . 1 . . . 2 6 . . . Catastrophic 1 | . . . . . . 1 . . . Database Lockouts . | . . . . . . . . . . Manual 1 | . . . . . . 1 . . . Terminals 13 | . 2 . . . 4 7 . . . Fabricators 4 | . . . . . . 4 . . . Repair Stations . | . . . . . . . . . . Recycling Units . | . . . . . . . . . . Scanalyzers 4 | . . . . . 4 . . . . Garrison Access . | . . . . . . . . . . Terminal Hacks 6 | . 1 . . . 2 3 . . . Robot Analysis 2 | . 1 . . . 1 . . . . Prototype ID Bank 1 | . . . . . . 1 . . . Branch Access Points 1 | . . . . . . 1 . . . Alert Level 1 | . . . . . . 1 . . . Unreport Threat 1 | . . . . . 1 . . . . Fabricator Hacks 2 | . . . . . . 2 . . . Load Schematic 1 | . . . . . . 1 . . . Build 1 | . . . . . . 1 . . . Repair Station Hacks . | . . . . . . . . . . Recycling Unit Hacks . | . . . . . . . . . . Scanalyzer 4 | . . . . . 4 . . . . Insert Component 2 | . . . . . 2 . . . . Analyze 2 | . . . . . 2 . . . . Garrison Access Hacks . | . . . . . . . . . . Unauthorized Hacks . | . . . . . . . . . . Terminals . | . . . . . . . . . . Fabricators . | . . . . . . . . . . Repair Stations . | . . . . . . . . . . Recycling Units . | . . . . . . . . . . Scanalyzers . | . . . . . . . . . . Garrison Access . | . . . . . . . . . . Data Cores Recovered . | . . . . . . . . . . Used . | . . . . . . . . . . Hacking Detections 8 | . 1 . . . 2 5 . . . Full Trace Events 3 | . . . . . 1 2 . . . Feedback Events . | . . . . . . . . . . Feedback Blocked . | . . . . . . . . . . Robot Schematics Acquired . | . . . . . . . . . . Robots Built . | . . . . . . . . . . Authchips . | . . . . . . . . . . Time . | . . . . . . . . . . Total Robot Build Rating . | . . . . . . . . . . Part Schematics Acquired 2 | . . . . . 2 . . . . Parts Built 1 | . . . . . . 1 . . . Authchips . | . . . . . . . . . . Time 62 | . . . . . . 62 . . . Total Part Build Rating 2 | . . . . . . 2 . . . Parts Repaired . | . . . . . . . . . . Time . | . . . . . . . . . . Parts Recycled . | . . . . . . . . . . Recycled Matter . | . . . . . . . . . . Retrieved Matter . | . . . . . . . . . . Retrieved Components . | . . . . . . . . . . Parts Scanalyzed 2 | . . . . . 2 . . . . Part Schematics Acquired 2 | . . . . . 2 . . . . Parts Damaged . | . . . . . . . . . . Bothacking | -11 -10 -10 -9 -9 -8 -7 -7 -7 -7 ------------ Run | Yrd Mat Min Mat Min Mat Fac Low Low Dat Used RIF Installer . | . . . . . . . . . . Robots Hacked . | . . . . . . . . . . Non-combat . | . . . . . . . . . . Combat . | . . . . . . . . . . Robot Hacks Applied . | . . . . . . . . . . Relay Couplers Released . | . . . . . . . . . . Fabnet Peak Effective % . | . . . . . . . . . . Robots Rewired 4 | . . . . . . . 2 2 . Allies Hacked . | . . . . . . . . . . Hacks Repelled . | . . . . . . . . . . Allies | -11 -10 -10 -9 -9 -8 -7 -7 -7 -7 -------- Run | Yrd Mat Min Mat Min Mat Fac Low Low Dat Total Allies 8 | . . 3 . 1 . . 2 2 . Largest Group 3 | . . 3 2 2 1 . 2 1 1 Highest-Rated Group 50 | . . 40 24 47 31 . 50 30 30 Highest-Rated Ally 31 | . . 16 16 31 31 . 30 30 30 Total Orders . | . . . . . . . . . . Ally Attacks 69 | . . 10 28 12 8 . . 11 . Total Damage 778 | . . 118 216 141 125 . . 178 . Kills 12 | . . 3 5 3 . . . 1 . Allies Corrupted . | . . . . . . . . . . Allies Melted . | . . . . . . . . . . Intel | -11 -10 -10 -9 -9 -8 -7 -7 -7 -7 ------- Run | Yrd Mat Min Mat Min Mat Fac Low Low Dat Robot Analysis Total 2 | . 1 . . . 1 . . . . Derelict Logs Recovered 5 | . . 1 . 1 . . 3 . . Drone Launches . | . . . . . . . . . . Drone Recoveries . | . . . . . . . . . . Exploration | -11 -10 -10 -9 -9 -8 -7 -7 -7 -7 ------------- Run | Yrd Mat Min Mat Min Mat Fac Low Low Dat Turns Passed 7579 | 150 430 1229 485 966 534 1794 1148 762 81 Spaces Moved 3921 | 97 222 741 217 546 254 812 630 366 36 Core 29 | 21 . . . . . . . . 8 Treads 3341 | . . 582 217 546 254 812 630 300 . Legs 551 | 76 222 159 . . . . . 66 28 Wheels . | . . . . . . . . . . Hover . | . . . . . . . . . . Flight . | . . . . . . . . . . Fastest Speed 50 | 50 120 120 160 160 160 160 162 155 50 Average Speed 158 | 104 120 151 160 160 160 163 163 177 213 Slowest Speed 260 | 120 120 160 160 160 160 167 167 260 260 Overloaded Moves . | . . . . . . . . . . Propulsion Burnouts . | . . . . . . . . . . Robots Hopped . | . . . . . . . . . . Cave-ins Triggered . | . . . . . . . . . . Exploration Rate (%) 46 | 5 29 92 23 97 23 19 69 44 61 Regions Visited 9 Branch Regions 5 Pre-discovered Areas 2 | . . . . 1 . . 1 . . Known Exits Taken 4 | . . . 1 1 1 1 . . . Unknown Exits Taken 5 | 1 1 1 . . . . 1 1 . Scrap Searched 5 | . . 1 . 1 . . 3 . . Spaces Dug 15 | . . . . . 3 3 . 9 . Terrain Destroyed 354 | . . . 8 89 18 73 63 100 3 Melee 1 | . . . . . . 1 . . . Projectile 26 | . . . . . 5 6 11 4 . AOE 327 | . . . 8 89 13 66 52 96 3 Terrain Rammed . | . . . . . . . . . . Walls Destroyed . | . . . . . . . . . . Machines Disabled . | . . . . . . . . . . Actions | -11 -10 -10 -9 -9 -8 -7 -7 -7 -7 --------- Run | Yrd Mat Min Mat Min Mat Fac Low Low Dat Total 4739 | 121 313 800 311 603 334 1100 691 428 38 Wait 213 | . 13 6 57 9 18 109 . 1 . Move 3912 | 96 221 740 216 545 253 811 629 365 36 Hop . | . . . . . . . . . . Pick Up 85 | 6 16 8 6 6 8 25 5 5 . Fast Attach 14 | 4 1 . . 1 3 3 . 2 . Attach 37 | 3 . . 2 . 6 16 5 5 . Detach 2 | . . . . . . 1 . 1 . Swap 69 | . 5 8 7 8 9 15 7 9 1 Drop 55 | . 11 10 1 7 9 16 1 . . Fire 282 | 12 46 16 20 19 27 91 25 25 1 Melee 36 | . . 11 . . . 13 6 6 . Ram . | . . . . . . . . . . Kick 1 | . . 1 . . . . . . . Crush 12 | . . . 2 8 1 . . 1 . Escape Stasis . | . . . . . . . . . . Rewire 21 | . . . . . . . 13 8 . Trap . | . . . . . . . . . . Miscellaneous . | . . . . . . . . . . Route ------- -11/Scrapyard -10/Materials -10/Mines -9/Materials -9/Mines (discovered 2 exits: *Mat x2) -8/Materials -7/Factory (discovered 2 exits: *Low x2) -7/Lower Caves -7/Lower Caves -7/Data Miner (discovered 1 exit: [*Pro]) History --------- Turn | Location | Event 9 | -11/Scrapyard | Discovered new exit (range 14) 151 | -11/Scrapyard | Entered Materials 331 | -10/Materials | Build established: Mutant 554 | -10/Materials | Discovered new exit (range 15) 581 | -10/Materials | Entered Mines 583 | -10/Mines | Met a Derelict bent on vengeance 603 | -10/Mines | Learned Materials stockpile data 643 | -10/Mines | Discovered new exit (range 5) 696 | -10/Mines | Assisted by bots powering up and referring to "LRC-V3" 756 | -10/Mines | Found a hidden stash of uninstalled traps 780 | -10/Mines | Joined a pair of Derelicts in attacking an 0b10 outpost 873 | -10/Mines | Excavation squad dispatched 873 | -10/Mines | A large section of the Mines collapsed 1083 | -10/Mines | Build established: Scavenger-Mutant 1810 | -10/Mines | Entered Materials 1810 | -9/Materials | Accompanied by 2 allies 1810 | -9/Materials | Evolved 2 slots: Utility x2 2165 | -9/Materials | Discovered new exit (range 13) 2169 | -9/Materials | Destroyed 7 combat bots 2215 | -9/Materials | Identified exit to Mines 2295 | -9/Materials | Entered Mines 2295 | -9/Mines | Accompanied by 1 ally 2367 | -9/Mines | Received a Rocket Launcher from a helpful Derelict 2510 | -9/Mines | Discovered new exit (range 11) 2526 | -9/Mines | Escorted by a lone wolf Derelict 2532 | -9/Mines | Identified exit to Materials 2546 | -9/Mines | Learned location of Storage (-8) 2640 | -9/Mines | Discovered exit to Materials (range 10) 2734 | -9/Mines | Learned location of 1 exit from Materials 2825 | -9/Mines | A weapon hastily lodged in a ceiling crevice suddenly fell to the ground 3261 | -9/Mines | Entered Materials 3261 | -8/Materials | Accompanied by 1 ally 3261 | -8/Materials | Evolved 2 slots: Propulsion x1, Utility x1 3262 | -8/Materials | Identified exit to Factory 3615 | -8/Materials | Build established: Scavenger-Skirmisher 3795 | -8/Materials | Entered Factory 3795 | -7/Factory | Evolved 2 slots: Propulsion x1, Utility x1 4495 | -7/Factory | Build established: Mutant 4819 | -7/Factory | System corruption reached 10% 5112 | -7/Factory | Build established: Scavenger-Mutant 5117 | -7/Factory | Identified exit to Lower Caves 5285 | -7/Factory | Fabricated Rocket Launcher (x1) 5589 | -7/Factory | Entered Lower Caves 5598 | -7/Lower Caves | Ambushed by wild Derelicts 6102 | -7/Lower Caves | Attracted the attention of an 0b10 outpost 6144 | -7/Lower Caves | Lost 3 parts (1p1n1u) 6225 | -7/Lower Caves | Learned Factory terminal intel 6410 | -7/Lower Caves | Build established: Mutant 6554 | -7/Lower Caves | Core integrity fell below 50% 6612 | -7/Lower Caves | Learned Factory security intel 6649 | -7/Lower Caves | Discovered new exit (range 12) 6667 | -7/Lower Caves | Learned location of Extension (-6) 6737 | -7/Lower Caves | Entered another Lower Caves area 7042 | -7/Lower Caves | Attracted the attention of an 0b10 outpost 7158 | -7/Lower Caves | Lost 3 parts (1n2u) 7405 | -7/Lower Caves | Discovered new exit (range 12) 7499 | -7/Lower Caves | Entered Data Miner 7499 | -7/Data Miner | Accompanied by 1 ally 7499 | -7/Data Miner | Discovered new exit (range 6) 7549 | -7/Data Miner | Met Data Miner 7562 | -7/Data Miner | Data Conduit disabled 7577 | -7/Data Miner | Released all parts (6) 7579 | -7/Data Miner | Core integrity fell below 20% 7580 | -7/Data Miner | Destroyed by Enhanced Grunt with Neutron Cannon Last Messages --------------- 07562_ Slug penetrates Data Conduit. 07562_ Data Conduit disabled. 07562_ Data Miner disappears through a trap door. 07566_ ORACLE Interface goes dark. 07567_ Fighter 4b destroyed. 07574_ System corrupted: Mni. Assault Cannon jammed. 07574_ Lgt. Treads destroyed. 07577_ Imp. Treads destroyed. 07577_ Rocket Launcher destroyed. 07577_ Carbon-fiber Leg destroyed. 07577_ Released Imp. Deuterium Engine. 07577_ Released Adv. Terrain Scan Processor. 07577_ Released Lrg. Storage Unit. 07577_ Released Coolant Injector. 07577_ Released Mni. Assault Cannon. 07577_ Released Adv. Treads. 07577_ Extracted 30 matter. 07578_ System corrupted: Energy discharge (-37). Map ----- +----------------------------------------------------+ | | | | | | | | | | | | | | | | | | | | | | | | | | | ?????????????????????????????????????????????????? | | ?????????????????????????????????????????????????? | | ?????????????????????????????????????????????????? | | ?????????????????????????????????????????????????? | | ?????????????????????????????????????####????????? | | ???????????##########?????##?#?#???### #????????? | | ???????????"""""""""###### # # #?### #????????? | | ???????"""""" """"""""; # # # ## < ##????????? | | ???????"""""" ######???? | | ???????" / g #???? | | ???????""" g%! #???? | | ???????"" = #???? | | ???????""" @ ##???? | | ???????""" g " """"""""""""""#####????? | | ????????""" """"###############????????? | | ????????""" g """###??????????????????????? | | ????????""""" =] ####????????????????????????? | | ?????????###"## =*[!!#???????????????????????????? | | ??????????????# !!*=##???????????????????????????? | | ??????????????## ]=[#????????????????????????????? | | ??????????????# /"#????????????????????????????? | | ??????????????# "#????????????????????????????? | | ?????????????# "#????????????????????????????? | | ?????????????### "#????????????????????????????? | | ???????????????# "#????????????????????????????? | | ???????????????# ""????????????????????????????? | | ??????????????? "?????????????????????????????? | | ???????????????X "?????????????????????????????? | | ??????????????" ?????????????????????????????? | | ??????????????" X?????????????????????????????? | | ??????????????"X ??????????????????????????????? | | ??????????????? ??????????????????????????????? | | ???????????????# ??????????????????????????????? | | ????????????????###??????????????????????????????? | | ?????????????????????????????????????????????????? | | ?????????????????????????????????????????????????? | | ?????????????????????????????????????????????????? | +----------------------------------------------------+ Best States ------------- Heat Dissipation 48 Coolant Potential 65 Energy Generation 16 Energy Capacity 290 Matter Stores 300 Matter Capacity 300 Sight Range 16 Robot Scan Range 14 Terrain Scan Range 16 Terrain Scan Density 210 Jamming Range 12 Armor Coverage 375 Evasion (%) 55 Targeting Accuracy 6 Recoil Reduction 4 Kinecelleration 30 Item Schematics ----------------- Rocket Launcher | -8/Materials | Scanalyzed Arm. Treads | -8/Materials | Scanalyzed Robot Schematics ------------------ None Fabricated ------------ Rocket Launcher | x1 | -7/Factory Alien Tech Used ----------------- None Achievements -------------- None Challenges ------------ None Game ------ Seed ScatterSubdwellerBoregun Manual? 0 Play Time 01:44:20 Cumulative 46.8 hours Start 2025.03.02 @ 13:25:10 End 2025.03.02 @ 19:59:51 Sessions 19 Manual Loads 0 Difficulty Rogue Special Mode None Game No. 18 Rogue 18 Adventurer 0 Explorer 0 Win Type - Total 0 Types 0/0/0/0/0/0/0/0/0 Lore% 10 Gallery% 36 Achievement% 31 Wizard Run 0 Options --------- Layout 1 ASCII 0 Keyboard 0 Movement Mouse Keybinds 0 Fullscreen 1 Font 32/SmallcapsGlow Map View 50x35 Zoom Use 0% Tactical HUD 1 Map Filters NONE Filters NONE Steam 1 RUN: d7112d50-9a8e-41b0-ae31-69505118ec30